Cogmind - Beta 13 @@@ ROGUE MODE // 2024.06.30 @ 12:45:15 Player: COGMIND Result: Destroyed by Y-45 Defender with Heavy Assault Rifle Performance ------------- Evolutions (1) 500 Regions Visited (4) 800 Robots Destroyed (21) 105 Value Destroyed (560) 560 Prototype IDs (2) 40 Alien Tech Used (0) 0 Bonus (0) 0 TOTAL SCORE: 2005 Bonus ------- None Cogmind --------- Core Integrity 0/400 Matter 295/300 Energy 100/100 System Corruption 0% Temperature Cool (9) Movement Core (50) Location -9/Storage Parts ------- > --- POWER (1) -------- (None) > --- PROPULSION (4) --- (None) > --- UTILITY (2) ------ (None) > --- WEAPON (2) ------- (None) > --- INVENTORY (5) ---- (None) Peak State ------------ > --- POWER ------------ Light Ion Engine > --- PROPULSION ------- Flight Unit Flight Unit > --- UTILITY ---------- Small Storage Unit Sensor Array > --- WEAPON ----------- Light Assault Rifle Light Assault Rifle > --- INVENTORY -------- Light Ion Engine Light Ion Engine Light Assault Rifle [Rating: 7] Favorites ----------- Power Light Ion Engine Engine Light Ion Engine Propulsion Flight Unit Leg Aluminum Leg Flight Unit Flight Unit Utility Small Storage Unit Device Sensor Array Storage Small Storage Unit Weapon Light Assault Rifle Energy Gun Small Laser Ballistic Gun Light Assault Rifle Launcher Grenade Launcher Build | -11 -10 -10 -9 -9 ------- Run | Yrd Mat Min Mat Sto Slots Evolved 2 | . . . 2 . Power . | . . . . . Propulsion 2 | . . . 2 . Utility . | . . . . . Weapon . | . . . . . Parts Attached 18 | 6 9 . 1 2 Power 4 | 1 2 . . 1 Engine 4 | 1 2 . . 1 Core . | . . . . . Reactor . | . . . . . Propulsion 6 | 2 4 . . . Treads . | . . . . . Leg 2 | 2 . . . . Wheel . | . . . . . Hover . | . . . . . Flight 4 | . 4 . . . Utility 2 | 1 1 . . . Device 1 | . 1 . . . Storage 1 | 1 . . . . Processor . | . . . . . Hackware . | . . . . . Protection . | . . . . . Artifact . | . . . . . Weapon 6 | 2 2 . 1 1 Energy Gun 1 | . . . . 1 Energy Cannon . | . . . . . Ballistic Gun 4 | 2 2 . . . Ballistic Cannon . | . . . . . Launcher 1 | . . . 1 . Special Weapon . | . . . . . Impact Weapon . | . . . . . Slashing Weapon . | . . . . . Piercing Weapon . | . . . . . Special Melee Weapon . | . . . . . Unidentified Prototypes . | . . . . . Parts Lost 12 | . 4 . 4 4 Power 3 | . 1 . 1 1 Propulsion 4 | . 2 . 1 1 Utility . | . . . . . Weapon 5 | . 1 . 2 2 Highest Loss Streak 6 | . 4 . 3 6 To Critical Strikes . | . . . . . Average Slot Usage (%) 51 | . 71 71 44 3 Engine 9 | . 12 14 10 . Leg 5 | . 9 . . . Flight 12 | . 15 28 13 . Storage 2 | . 4 . . . Ballistic Gun 20 | . 27 28 21 . Naked Turns 85 | . . . . 85 Heaviest Build 10 | 10 10 5 5 3 Greatest Support 20 | 20 20 8 8 4 Greatest Overweight (x) 1 | . 1 . 1 . Average Overweight (x) . | . . . . . Largest Inventory Capacity 8 | 8 8 5 5 5 Average Capacity 5 | 7 6 5 5 5 Most Carried 8 | 6 8 2 2 2 Average Carried 2 | 3 3 2 1 . Final Capacity 8 | 8 5 5 5 5 Final Carried 3 | 3 2 2 1 . Class Distribution -------------------- 62% | Mutant 37% | Scavenger-Mutant Dominant Class ---------------- Mutant | -10/Materials Scavenger-Mutant | -10/Mines Scavenger-Mutant | -9/Materials Mutant | -9/Storage Resources | -11 -10 -10 -9 -9 ----------- Run | Yrd Mat Min Mat Sto Matter Collected 480 | 156 254 . 23 47 Remotely . | . . . . . Salvage Created 607 | . 367 . 118 122 Parts 41 | . 25 . 8 8 Haulers Intercepted . | . . . . . Recyclers Shooed . | . . . . . Parts Field Recycled . | . . . . . Retrieved Matter . | . . . . . Parts Self-Destructed . | . . . . . Prevented . | . . . . . Kills | -11 -10 -10 -9 -9 ------- Run | Yrd Mat Min Mat Sto Combat Hostiles Destroyed 18 | . 12 . 3 3 Guns 13 | . 12 . 1 . AOE 5 | . . . 2 3 Classes Destroyed 5 | . 3 . 1 1 Watcher 3 | . 1 . . 2 Swarmer 6 | . 6 . . . Grunt 10 | . 6 . 2 2 Duelist 1 | . . . . 1 Sentry 1 | . . . 1 . Best Kill Streak 7 | . 5 . 2 7 Combat Bots Only 5 | . 5 . 2 5 Max Kills in Single Turn 3 | . 2 . 2 3 Gunslinging 1 | . 1 . . . Exploded 3 | . . . 2 3 Melee . | . . . . . Uniques/NPCs Destroyed . | . . . . . Combat | -11 -10 -10 -9 -9 -------- Run | Yrd Mat Min Mat Sto Hostile Shots Fired 162 | . 91 . 28 43 Missed 52 | . 29 . 8 15 Damage Taken 1272 | . 562 . 298 412 Core 598 | . 187 . 93 318 Absorbed by Shields . | . . . . . Core Remaining (%) 62 | 100 . 25 . . Volleys Fired 68 | . 49 . 13 6 Largest 2 | . 2 . 2 1 Hottest 40 | . 40 . 40 40 Shots Fired 122 | . 94 . 22 6 Gun 117 | . 94 . 21 2 Cannon . | . . . . . Launcher 5 | . . . 1 4 Special . | . . . . . Kinetic 115 | . 94 . 21 . Thermal 2 | . . . . 2 Explosive 5 | . . . 1 4 Electromagnetic . | . . . . . Robot Hit Streak 10 | . 10 . 9 3 Robot Miss Streak 4 | . 4 . 1 1 Penetration Max . | . . . . . Secondary Targets 3 | . 3 . . . Max Gunslinging Chain 1 | . 1 . . . Shots Hit Robots 78 | . 57 . 17 4 Core Hits 38 | . 24 . 8 6 Critical Kills . | . . . . . Critical Parts Destroyed 2 | . 1 . 1 . Critical Strikes 2 | . 1 . 1 . Destroy 2 | . 1 . 1 . Melee Attacks . | . . . . . Impact . | . . . . . Slashing . | . . . . . Piercing . | . . . . . Sneak Attacks . | . . . . . Combat Hostiles . | . . . . . Follow-up Attacks . | . . . . . Damage Inflicted 884 | . 445 . 187 252 Guns 589 | . 445 . 122 22 Cannons . | . . . . . Explosions 295 | . . . 65 230 Melee . | . . . . . Ramming . | . . . . . Kinetic 567 | . 445 . 122 . Thermal 22 | . . . . 22 Explosive 295 | . . . 65 230 Electromagnetic . | . . . . . Impact . | . . . . . Slashing . | . . . . . Piercing . | . . . . . Highest Corruption . | . . . . . Average Corruption . | . . . . . Corruption Purged . | . . . . . Corruption Blocked . | . . . . . Overload Shots . | . . . . . Overflow Damage . | . . . . . Projectiles . | . . . . . Explosions . | . . . . . Melee . | . . . . . Knockbacks . | . . . . . Impact . | . . . . . Kinetic . | . . . . . Secondary . | . . . . . Self-Inflicted Damage 31 | . . . 31 . Shots 1 | . . . 1 . Rammed . | . . . . . Targets Rammed . | . . . . . Kicked . | . . . . . Crushed . | . . . . . Highest Temperature 21 | . 21 . 14 . Average Temperature 7 | . 7 . 8 . Received Heat Transfer 414 | . 114 . 117 183 Siege Activations . | . . . . . Robots Corrupted . | . . . . . Combat Hostiles . | . . . . . Parts Fried . | . . . . . Impact Corruptions . | . . . . . Robots Melted . | . . . . . Combat Hostiles . | . . . . . Parts Melted . | . . . . . Heat Transferred 50 | . . . . 50 Parts Sabotaged . | . . . . . Parts Stolen . | . . . . . Parts Stripped . | . . . . . Power Chain Reactions . | . . . . . Alert | -11 -10 -10 -9 -9 ------- Run | Yrd Mat Min Mat Sto Peak Influence 325 | . 325 126 128 213 Initial 126 | . . 126 48 53 Average 110 | . 128 126 86 167 Maximum Alert Level 1 | . 1 . . 1 Low Security (%) 85 | 100 73 100 100 89 Level 1 14 | . 26 . . 10 Level 2 . | . . . . . Level 3 . | . . . . . Level 4 . | . . . . . Level 5 . | . . . . . High Security . | . . . . . Max Security . | . . . . . Squads Dispatched 5 | . 4 . 1 . Investigation 2 | . 2 . . . Extermination . | . . . . . Reinforcement 3 | . 2 . 1 . Assault . | . . . . . Garrison . | . . . . . Intercept . | . . . . . Searches Triggered . | . . . . . Construction Impeded . | . . . . . Haulers Reinforced . | . . . . . Active Scanning Responses . | . . . . . Cargo Convoy Interrupts . | . . . . . Stealth | -11 -10 -10 -9 -9 --------- Run | Yrd Mat Min Mat Sto Distress Signals 2 | . 1 . . 1 Communications Jammed . | . . . . . Distress Signals . | . . . . . Times Spotted 34 | . 18 . 5 11 Peak Tracking Total 6 | . 6 . 4 6 Tactical Retreats . | . . . . . Traps | -11 -10 -10 -9 -9 ------- Run | Yrd Mat Min Mat Sto Traps Triggered . | . . . . . Indirectly . | . . . . . Trap Hack Attempts . | . . . . . Triggered . | . . . . . Disarmed . | . . . . . Reprogrammed . | . . . . . Reused . | . . . . . Traps Extracted . | . . . . . Installed . | . . . . . Triggered . | . . . . . Machines | -11 -10 -10 -9 -9 ---------- Run | Yrd Mat Min Mat Sto Machines Disabled 2 | . . . . 2 Max in Single Turn 1 | . . . . 1 Machines Repaired . | . . . . . Machines Dismantled . | . . . . . Machines Sabotaged . | . . . . . Overloaded Fab Kills . | . . . . . Hacking | -11 -10 -10 -9 -9 --------- Run | Yrd Mat Min Mat Sto Machines Accessed 4 | . 3 . 1 . Terminals 4 | . 3 . 1 . Fabricators . | . . . . . Repair Stations . | . . . . . Recycling Units . | . . . . . Scanalyzers . | . . . . . Garrison Access . | . . . . . Total Hacks 14 | . 12 . 2 . Successful 9 | . 7 . 2 . Failed 5 | . 5 . . . Catastrophic 2 | . 2 . . . Database Lockouts . | . . . . . Manual 3 | . 2 . 1 . Terminals 14 | . 12 . 2 . Fabricators . | . . . . . Repair Stations . | . . . . . Recycling Units . | . . . . . Scanalyzers . | . . . . . Garrison Access . | . . . . . Terminal Hacks 9 | . 7 . 2 . Record 4 | . 3 . 1 . Prototype ID Bank 1 | . . . 1 . Alert Level 1 | . 1 . . . Recall Investigation 1 | . 1 . . . Zone Layout 2 | . 2 . . . Fabricator Hacks . | . . . . . Repair Station Hacks . | . . . . . Recycling Unit Hacks . | . . . . . Scanalyzer . | . . . . . Garrison Access Hacks . | . . . . . Unauthorized Hacks . | . . . . . Terminals . | . . . . . Fabricators . | . . . . . Repair Stations . | . . . . . Recycling Units . | . . . . . Scanalyzers . | . . . . . Garrison Access . | . . . . . Data Cores Recovered . | . . . . . Used . | . . . . . Hacking Detections 4 | . 3 . 1 . Full Trace Events 2 | . 2 . . . Feedback Events . | . . . . . Feedback Blocked . | . . . . . Robot Schematics Acquired . | . . . . . Robots Built . | . . . . . Authchips . | . . . . . Time . | . . . . . Total Robot Build Rating . | . . . . . Part Schematics Acquired . | . . . . . Parts Built . | . . . . . Authchips . | . . . . . Time . | . . . . . Total Part Build Rating . | . . . . . Parts Repaired . | . . . . . Time . | . . . . . Parts Recycled . | . . . . . Recycled Matter . | . . . . . Retrieved Matter . | . . . . . Retrieved Components . | . . . . . Parts Scanalyzed . | . . . . . Part Schematics Acquired . | . . . . . Parts Damaged . | . . . . . Bothacking | -11 -10 -10 -9 -9 ------------ Run | Yrd Mat Min Mat Sto Used RIF Installer . | . . . . . Robots Hacked . | . . . . . Non-combat . | . . . . . Combat . | . . . . . Robot Hacks Applied . | . . . . . Relay Couplers Released . | . . . . . Fabnet Peak Effective % . | . . . . . Robots Rewired . | . . . . . Allies Hacked . | . . . . . Hacks Repelled . | . . . . . Allies | -11 -10 -10 -9 -9 -------- Run | Yrd Mat Min Mat Sto Total Allies . | . . . . . Largest Group . | . . . . . Highest-Rated Group . | . . . . . Highest-Rated Ally . | . . . . . Total Orders . | . . . . . Ally Attacks . | . . . . . Total Damage . | . . . . . Kills . | . . . . . Allies Corrupted . | . . . . . Allies Melted . | . . . . . Intel | -11 -10 -10 -9 -9 ------- Run | Yrd Mat Min Mat Sto Robot Analysis Total . | . . . . . Derelict Logs Recovered . | . . . . . Drone Launches . | . . . . . Drone Recoveries . | . . . . . Exploration | -11 -10 -10 -9 -9 ------------- Run | Yrd Mat Min Mat Sto Turns Passed 701 | 94 337 14 132 124 Spaces Moved 716 | 77 304 38 104 193 Core 197 | 19 11 . . 167 Treads . | . . . . . Legs 109 | 58 51 . . . Wheels . | . . . . . Hover . | . . . . . Flight 410 | . 242 38 104 26 Fastest Speed 37 | 50 37 37 37 40 Average Speed 61 | 102 51 37 95 48 Slowest Speed 120 | 120 120 37 120 50 Overloaded Moves . | . . . . . Propulsion Burnouts . | . . . . . Robots Hopped 3 | . 3 . . . Cave-ins Triggered . | . . . . . Exploration Rate (%) 23 | 5 55 11 11 34 Regions Visited 4 Branch Regions 2 Pre-discovered Areas . | . . . . . Known Exits Taken . | . . . . . Unknown Exits Taken 4 | 1 1 1 1 . Scrap Searched . | . . . . . Spaces Dug 5 | . . . . 5 Terrain Destroyed 34 | . . . 5 29 Melee . | . . . . . Projectile . | . . . . . AOE 34 | . . . 5 29 Terrain Rammed . | . . . . . Walls Destroyed . | . . . . . Machines Disabled . | . . . . . Actions | -11 -10 -10 -9 -9 --------- Run | Yrd Mat Min Mat Sto Total 871 | 92 407 37 118 217 Wait 50 | 1 33 . 1 15 Move 706 | 76 297 37 103 193 Hop 3 | . 3 . . . Pick Up 19 | 9 9 . . 1 Fast Attach . | . . . . . Attach 16 | 6 7 . 1 2 Detach . | . . . . . Swap 2 | . 2 . . . Drop 7 | . 7 . . . Fire 68 | . 49 . 13 6 Melee . | . . . . . Ram . | . . . . . Kick . | . . . . . Crush . | . . . . . Escape Stasis . | . . . . . Rewire . | . . . . . Trap . | . . . . . Miscellaneous . | . . . . . Route ------- -11/Scrapyard -10/Materials (discovered 2 exits: Mat / [*Min]) -10/Mines -9/Materials -9/Storage History --------- Turn | Location | Event 5 | -11/Scrapyard | Discovered new exit (range 16) 95 | -11/Scrapyard | Entered Materials 299 | -10/Materials | Core integrity fell below 50% 331 | -10/Materials | Lost 4 parts (1p2n1w) 344 | -10/Materials | Discovered new exit (range 19) 428 | -10/Materials | Discovered new exit (range 11) 432 | -10/Materials | Entered Mines 439 | -10/Mines | Discovered new exit (range 14) 446 | -10/Mines | Entered Materials 446 | -9/Materials | Evolved 2 slots: Propulsion x2 454 | -9/Materials | Discovered new exit (range 7) 578 | -9/Materials | Entered Storage 639 | -9/Storage | Lost 6 parts (1p1n4w) 662 | -9/Storage | Core integrity fell below 50% 689 | -9/Storage | Core integrity fell below 20% 702 | -9/Storage | Destroyed by Y-45 Defender with Heavy Assault Rifle Last Messages --------------- 00605_ U-05 Engineer builds a Wall. 00606_ K-01 Serf collects debris. 00607_ U-05 Engineer builds a Wall. 00607_ R-06 Scavenger collects Hover Unit. 00608_ Sml. Laser destroyed. 00608_ Acquired 5 matter. 00609_ U-05 Engineer lays Concrete. 00611_ K-01 Serf collects debris. 00611_ U-05 Engineer lays Concrete. 00611_ R-06 Scavenger collects Sml. Laser. 00612_ The unstable cave ceiling collapses. 00612_ U-05 Engineer lays Concrete. 00612_ U-05 Engineer builds a Wall. 00614_ R-06 Scavenger collects Imp. Ion Engine. 00617_ U-05 Engineer lays Concrete. 00624_ K-01 Serf collects debris. 00664_ Critical hit (Burn: +37). 00668_ Acquired 39 matter. 00670_ Critical hit (Burn: +37). 00688_ Lgt. Ion Engine destroyed. Map ----- +----------------------------------------------------+ | ???????"" #######??????? ??# # """ """ | | ?????""" # ??????? #?# """""" #??""" """ | | ????""""" ??????? #?# "????" #???? ? | | ???? ""???????? #?# "????" #######/#?? | | ??? """"" ""????????# #?# """""" + #?? | | ????"""" ""????????# #?# # ### | | ????"""" ??????????# #?# # " """ | | ?????? ###?????????# #?# # T G" | | ########### ############# #########+### " """ | | % ### | | % #?? | | % ###############"## #?? | | ######## #! #############??????# ## #?? | | ???? # #????????????????### ## #?? | | ??"" # #####????????????????#"" # ?? | | ??"" # #????????????????????#"Y # #? | | ?""" # #????????????????????#"" # #? | | ? ?# #????????????????????### """" # #? | | """ ?# ?????????????????????# """" ## ##? | | """ ?# ?????????????????????## """" #? #?? | | ??"? ?# ##?????????????????????# """" #? #?? | | ??? ??# #??????????????????###########+##? #?? | | ???###??# ###????????????????# ###### ### #?? | | ???????? ## ############## YY #?? | | ???????? ?# #?? | | ????????###?# Y @ ### #?? | | ????????????# #######+## """ #??? #?? | | ????????????##????# # """ #????#?? | | ??????????????????# # """ #??????? | | ??????????????????#"""" # #??????? | | ??????????????????#"""" # #########??????? | | ??????????????????#"""" ###" "###??????????????? | | ??????????????????#"""" #?#"R"#????????????????? | | ??????????????????# ##"""#????????????????? | | ??????????????????# ##?#?##????????????????? | | ??????????????????# #??????????????????????? | | ??????????????????########???????????????????????? | | | | | | | | | | | | | | | | | | | | | | | | | | | +----------------------------------------------------+ Best States ------------- Heat Dissipation 28 Energy Generation 10 Energy Capacity 125 Matter Stores 300 Matter Capacity 300 Sight Range 16 Terrain Scan Density 10 Evasion (%) 62 Item Schematics ----------------- None Robot Schematics ------------------ None Fabricated ------------ Nothing Alien Tech Used ----------------- None Achievements -------------- None Challenges ------------ None Game ------ Seed MagneticExperimentalArray Manual? 0 Play Time 00:14:22 Cumulative 4.7 hours Start 2024.06.30 @ 12:32:22 End 2024.06.30 @ 12:45:15 Sessions 1 Manual Loads 0 Difficulty Rogue Special Mode None Game No. 10 Rogue 10 Adventurer 0 Explorer 0 Win Type - Total 0 Types 0/0/0/0/0/0/0/0/0 Lore% 2 Gallery% 7 Achievement% 7 Wizard Run 0 Options --------- Layout 1 ASCII 0 Keyboard 0 Movement Arrows Keybinds 0 Fullscreen 1 Font 24/Proggy Map View 50x35 Zoom Use 0% Tactical HUD 1 Map Filters NONE Filters NONE Steam 1 RUN: ae41146c-1455-4bf8-868c-2d6c7b66a830